Cogmind - Beta 16 @@@ ROGUE MODE // 2025.12.19 @ 14:07:36 Player: Minty Result: Self-destructed Performance ------------- Evolutions (6) 3000 Regions Visited (14) 2800 Robots Destroyed (113) 565 Value Destroyed (5015) 5015 Prototype IDs (10) 200 Alien Tech Used (0) 0 Bonus (3774) 3774 TOTAL SCORE: 15354 Bonus ------- High Alert Combat Kills 434 Follower Combat Kills 976 Entered Garrisons 400 Used RIF Installer 1500 Entered DSFs 500 Friendly Fire -36 Cogmind --------- Core Integrity 261/1150 Matter 82/300 Energy 100/100 System Corruption 5% Temperature Cool (24) Movement Core (50) Location -4/Factory Parts ------- > --- POWER (1) -------- (None) > --- PROPULSION (4) --- (None) > --- UTILITY (10) ----- Enhanced Optical Array > --- WEAPON (4) ------- (None) > --- INVENTORY (5) ---- Relay Coupler [Swarmer] (29) Relay Coupler [Swarmer] (21) Relay Coupler [Grunt] (26) Relay Coupler [Sentry] (21) Peak State ------------ > --- POWER ------------ Reinforced Deuterium Engine > --- PROPULSION ------- Heavy Treads Heavy Treads > --- UTILITY ---------- Improved Cooling System Advanced Coolant Injector Huge Storage Unit Enhanced Optical Array Advanced Targeting Computer Advanced Targeting Computer Improved Light Armor Plating Layered Light Armor Plating Remote Shield Relay Coupler [Grunt] > --- WEAPON ----------- Hypervelocity Coil Gun Hypervelocity Coil Gun Hypervelocity Coil Gun Hypervelocity Coil Gun > --- INVENTORY -------- Improved Ion Engine Heavy Ion Engine Antimatter Reactor Advanced Treads Advanced Treads Improved Cooling System Improved Cooling System Relay Coupler [NC] Relay Coupler [NC] Relay Coupler [NC] Relay Coupler [Swarmer] Relay Coupler [Swarmer] Relay Coupler [Swarmer] Relay Coupler [Swarmer] Relay Coupler [Grunt] Relay Coupler [Grunt] Relay Coupler [Grunt] Relay Coupler [Brawler] Relay Coupler [Sentry] Relay Coupler [Sentry] Heavy Machine Gun Hypervelocity Coil Gun Heavy Rocket Launcher Remote Datajack [Rating: 98] Favorites ----------- Power Cooled Ion Engine Engine Cooled Ion Engine Reactor Antimatter Reactor Propulsion Light Treads Treads Light Treads Leg Aluminum Leg Wheel Compact Wheel Utility Huge Storage Unit Device Cooling System Storage Huge Storage Unit Processor Advanced Targeting Computer Hackware Hacking Suite Protection Hardened Light Armor Plating Weapon Heavy Particle Gun Energy Gun Heavy Particle Gun Energy Cannon Advanced Beam Cannon Ballistic Gun Assault Rifle Launcher Heavy Rocket Launcher Special Weapon Remote Datajack Build | -11 -10 -9 -9 -8 -8 -7 -7 -7 -6 -6 -6 -5 -5 -4 ------- Run | Yrd Mat Mat Min Mat Gar Fac Was Fac Fac Gar Fac Fac DSF Fac Slots Evolved 12 | . . 2 . 2 . 2 . . 2 . . 2 . 2 Power . | . . . . . . . . . . . . . . . Propulsion 2 | . . . . . . 1 . . 1 . . . . . Utility 8 | . . . . 2 . 1 . . 1 . . 2 . 2 Weapon 2 | . . 2 . . . . . . . . . . . . Parts Attached 79 | . 5 15 . 8 9 1 6 7 2 6 5 1 6 8 Power 5 | . . 2 . 1 . . 1 . . . 1 . . . Engine 4 | . . 2 . 1 . . . . . . 1 . . . Core . | . . . . . . . . . . . . . . . Reactor 1 | . . . . . . . 1 . . . . . . . Propulsion 14 | . 2 3 . . 4 . 1 2 1 . . . . 1 Treads 11 | . 2 3 . . 2 . 1 1 1 . . . . 1 Leg . | . . . . . . . . . . . . . . . Wheel 3 | . . . . . 2 . . 1 . . . . . . Hover . | . . . . . . . . . . . . . . . Flight . | . . . . . . . . . . . . . . . Utility 35 | . 1 5 . 4 2 1 3 4 1 2 3 1 1 7 Device 10 | . 1 . . 1 1 . 2 . . . . 1 1 3 Storage 3 | . . 2 . 1 . . . . . . . . . . Processor 5 | . . . . . . 1 1 . . . 3 . . . Hackware 7 | . . . . . . . . 3 . 2 . . . 2 Protection 10 | . . 3 . 2 1 . . 1 1 . . . . 2 Artifact . | . . . . . . . . . . . . . . . Weapon 25 | . 2 5 . 3 3 . 1 1 . 4 1 . 5 . Energy Gun 7 | . . 1 . 2 3 . . . . . 1 . . . Energy Cannon 1 | . . 1 . . . . . . . . . . . . Ballistic Gun 15 | . 2 3 . 1 . . . . . 4 . . 5 . Ballistic Cannon . | . . . . . . . . . . . . . . . Launcher 1 | . . . . . . . . 1 . . . . . . Special Weapon 1 | . . . . . . . 1 . . . . . . . Impact Weapon . | . . . . . . . . . . . . . . . Slashing Weapon . | . . . . . . . . . . . . . . . Piercing Weapon . | . . . . . . . . . . . . . . . Special Melee Weapon . | . . . . . . . . . . . . . . . Unidentified Prototypes 5 | . . 2 . 2 . . . . . . 1 . . . Parts Lost 26 | . . . . 2 6 . . 1 . . . . 1 16 Power 1 | . . . . . . . . . . . . . . 1 Propulsion 5 | . . . . . 1 . . . . . . . . 4 Utility 11 | . . . . . 3 . . 1 . . . . . 7 Weapon 9 | . . . . 2 2 . . . . . . . 1 4 Highest Loss Streak 16 | . . . . 2 2 . . 1 . . . . 1 16 To Critical Strikes . | . . . . . . . . . . . . . . . Average Backups 18 | . 6 8 10 9 17 25 24 23 23 23 25 23 24 22 Power 2 | . 1 . 1 1 1 2 2 3 4 4 4 3 3 2 Propulsion 1 | . 2 . . . . 1 . 1 1 1 1 2 2 1 Utility 12 | . . 2 3 2 11 19 18 17 17 16 17 16 17 14 Weapon 2 | . 2 5 6 6 3 3 2 . . . 1 1 1 2 Tool/Special . | . . . . . . . . . . . . . . . Unused Backups 44 | . 8 10 . 1 3 . 2 3 . . 1 . . 16 Power 5 | . 1 2 . . . . . . . . . . . 2 Propulsion 5 | . 3 1 . . . . 1 . . . . . . . Utility 24 | . 1 3 . . 3 . . 2 . . 1 . . 14 Weapon 10 | . 3 4 . 1 . . 1 1 . . . . . . Tool/Special . | . . . . . . . . . . . . . . . Average Slot Usage (%) 91 | . 93 99 100 98 97 74 86 89 81 85 86 87 86 78 Engine 8 | . 14 11 11 9 9 7 6 7 6 6 6 5 5 4 Treads 13 | . 15 22 22 18 9 7 10 12 11 13 13 11 11 8 Wheel 2 | . . . . . 7 7 7 2 . . . . . . Device 10 | . 9 2 . 3 15 7 15 15 6 6 2 10 10 9 Storage 8 | . 14 11 11 9 9 7 7 7 6 6 6 5 5 4 Processor 2 | . . . . . . 4 5 1 . . 11 17 17 14 Hackware 4 | . . . . . . . . 11 20 19 12 5 5 3 Protection 6 | . . 8 11 23 9 1 . . 3 6 6 5 5 11 Energy Gun 16 | . 1 . . 6 35 30 23 23 20 9 . . . . Ballistic Gun 13 | . 24 43 44 29 . . . . . 13 26 23 21 18 Special Weapon 1 | . . . . . . . 6 5 . . . . . . Peak Build Rating 98 | . 7 13 13 22 36 34 56 56 65 73 75 82 87 98 Average Rating 42 | . 6 10 13 18 31 30 40 52 64 69 73 81 83 84 On Entrance 41 | 6 6 7 13 13 22 34 30 56 54 65 73 75 82 86 Avg Prop Armor Cover (%) 13 | . . . . . 10 10 15 17 . . . . . . Naked Turns . | . . . . . . . . . . . . . . . Heaviest Build 137 | 13 15 30 30 41 108 104 110 107 110 114 119 125 129 137 Greatest Support 140 | 20 40 40 40 40 40 16 16 92 140 140 140 140 140 140 Greatest Overweight (x) 8 | . . . . 1 6 6 6 8 . . . . . . Average Overweight (x) 1 | . . . . . 2 6 6 3 . . . . . . Largest Inventory Capacity 25 | . 8 10 10 25 25 25 25 25 25 25 25 25 25 25 Average Capacity 19 | . 8 9 10 10 19 25 25 25 25 25 25 25 25 23 Most Carried 25 | . 8 10 10 10 25 25 25 25 25 25 25 24 25 25 Average Carried 18 | . 6 8 10 9 17 25 24 24 23 23 25 23 24 22 Final Capacity 25 | 8 8 10 10 10 25 25 25 25 25 25 25 25 25 5 Final Carried 25 | 6 6 10 10 10 25 25 25 25 23 25 25 23 25 4 Class Distribution -------------------- 37% | Bothacker-Tank 32% | Tank 9% | Bothacker-Gunner 9% | Scavenger-Tank 4% | Mutant 4% | Gunner Dominant Class ---------------- Mutant | -10/Materials Tank | -9/Materials Tank | -9/Mines Tank | -8/Materials Tank | -8/Garrison Gunner | -7/Factory Bothacker-Gunner | -7/Waste Bothacker-Tank | -7/Factory Bothacker-Tank | -6/Factory Bothacker-Tank | -6/Garrison Bothacker-Tank | -6/Factory Bothacker-Gunner | -5/Factory Bothacker-Gunner | -5/DSF Bothacker-Tank | -4/Factory Resources | -11 -10 -9 -9 -8 -8 -7 -7 -7 -6 -6 -6 -5 -5 -4 ----------- Run | Yrd Mat Mat Min Mat Gar Fac Was Fac Fac Gar Fac Fac DSF Fac Matter Collected 2828 | 200 140 641 98 311 115 . 80 125 . 311 47 . 455 305 Remotely . | . . . . . . . . . . . . . . . Salvage Created 5327 | . 229 954 83 484 1183 . 294 198 . 163 142 . 527 1070 Parts 234 | . 10 62 2 25 39 . 1 13 . 4 6 . 26 46 Haulers Intercepted 6 | . 1 5 . . . . . . . . . . . . Recyclers Shooed 3 | . 1 . 1 . . . . . . . . . . 1 Parts Field Recycled . | . . . . . . . . . . . . . . . Retrieved Matter . | . . . . . . . . . . . . . . . Parts Self-Destructed . | . . . . . . . . . . . . . . . Prevented . | . . . . . . . . . . . . . . . Parts Restored . | . . . . . . . . . . . . . . . Kills | -11 -10 -9 -9 -8 -8 -7 -7 -7 -6 -6 -6 -5 -5 -4 ------- Run | Yrd Mat Mat Min Mat Gar Fac Was Fac Fac Gar Fac Fac DSF Fac Combat Hostiles Destroyed 84 | . 4 15 2 12 23 . . 2 . 3 4 . 9 10 Melee 1 | . . . . 1 . . . . . . . . . . Guns 75 | . 4 15 2 11 21 . . 1 . 2 4 . 9 6 AOE 5 | . . . . . . . . 1 . . . . . 4 Classes Destroyed 17 | . 2 7 . 1 3 . . . . . . . 2 2 Worker 6 | . . 2 . . . . . 3 . . 1 . . . Builder 5 | . . 1 . 1 . . . 2 . . . . . 1 Tunneler 1 | . . . . . . . . . . . . . . 1 Hauler 6 | . 1 5 . . . . . . . . . . . . Recycler 6 | . . 3 . . . . . 1 . . . . . 2 Operator 2 | . . 1 . 1 . . . . . . . . . . Watcher 3 | . . 1 . . . . . 1 . . . . . 1 Swarmer 21 | . . 9 . 3 6 . . . . . 3 . . . Grunt 38 | . 4 2 2 8 6 . . . . 2 . . 6 8 Brawler 1 | . . . . . . . . . . . . . . 1 Protector 1 | . . . . . 1 . . . . . . . . . Sentry 9 | . . 4 . . 5 . . . . . . . . . Demolisher 1 | . . . . . 1 . . . . . . . . . Specialist 2 | . . . . . . . . . . . . . 2 . Hunter 5 | . . . . 1 1 . . 1 . 1 . . . 1 Programmer 5 | . . . . . 3 . . 1 . . 1 . . . Heavy 1 | . . . . . . . . . . . . . 1 . Best Kill Streak 11 | . 3 11 2 6 4 . . 5 . 2 4 . 4 8 Combat Bots Only 9 | . 3 9 2 6 4 . . 1 . 2 4 . 4 4 Max Kills in Single Turn 4 | . 1 2 1 1 1 . . 4 . 1 1 . 2 2 Gunslinging 1 | . . 1 . . . . . . . . . . 1 1 Exploded 2 | . . . . . . . . 1 . . . . . 2 Melee 1 | . . . . 1 . . . . . . . . . . Uniques/NPCs Destroyed . | . . . . . . . . . . . . . . . Combat | -11 -10 -9 -9 -8 -8 -7 -7 -7 -6 -6 -6 -5 -5 -4 -------- Run | Yrd Mat Mat Min Mat Gar Fac Was Fac Fac Gar Fac Fac DSF Fac Hostile Shots Fired 553 | . 18 53 7 70 110 . . 2 . 19 8 . 52 214 Missed 153 | . 6 14 3 10 32 . . 1 . 5 5 . 15 62 Hits 400 | . 12 39 4 60 78 . . 1 . 14 3 . 37 152 Melee 8 | . . . . . . . . . . 1 . . . 7 Projectile 392 | . 12 39 4 60 78 . . 1 . 13 3 . 37 145 AOE 8 | . . . . . 3 . . . . 3 . . . 2 Critical Strikes 26 | . . 1 . 2 5 . . . . 1 . . 3 14 Part Disruptions 2 | . . . . . . . . . . . . . 2 . Damage Taken 7143 | . 186 404 63 778 1089 . . 117 . 343 177 . 843 3143 Core 1252 | . 39 48 . 102 96 . . . . 24 . . 54 889 Absorbed by Shields . | . . . . . . . . . . . . . . . Reduced by Siege Mode 33 | . . . . . . . . . . . . . 22 11 Redirected to Shielding 4 | . . . . . 4 . . . . . . . . . Regen/Repaired (Parts) 325 | . 41 . . . . . 149 40 . 95 . . . . Core Remaining (%) 89 | 100 84 . 88 . 64 . . 100 . . 97 . 94 . Volleys Fired 259 | . 15 40 6 22 83 . 5 14 . 18 7 . 18 31 Largest 4 | . 2 4 4 4 4 . 3 4 . 4 4 . 4 4 Hottest 222 | . 40 80 80 152 222 . 166 205 . 166 120 . 130 140 Shots Fired 882 | . 30 160 24 84 321 . 15 26 . 61 28 . 62 71 Gun 857 | . 30 160 24 84 321 . 15 16 . 60 28 . 62 57 Cannon . | . . . . . . . . . . . . . . . Launcher 12 | . . . . . . . . 3 . . . . . 9 Special 13 | . . . . . . . . 7 . 1 . . . 5 Kinetic 464 | . 30 160 24 67 . . . . . 36 28 . 62 57 Thermal 391 | . . . . 17 319 . 15 16 . 24 . . . . Explosive 12 | . . . . . . . . 3 . . . . . 9 Electromagnetic 2 | . . . . . 2 . . . . . . . . . Robot Hit Streak 38 | . 17 20 8 18 23 . 17 9 . 10 2 . 38 20 Robot Miss Streak 8 | . 2 5 2 3 6 . 1 4 . 7 8 . 1 4 Penetration Max 2 | . . . . . . . . . . . . . 2 2 Secondary Targets 25 | . 1 6 . 6 6 . . . . 1 1 . 2 2 Max Gunslinging Chain 1 | . 1 1 . 1 1 . . . . 1 1 . 1 1 Shots Hit Robots 498 | . 25 97 18 61 133 . 12 15 . 24 8 . 53 52 Core Hits 217 | . 12 41 5 27 47 . 3 10 . 9 6 . 21 36 Critical Kills 13 | . . . . 1 . . . . . . . . 2 10 Critical Parts Destroyed 12 | . . . . . . . . . . . . . 1 11 Critical Strikes 42 | . . . . 4 12 . . 1 . . . . 3 22 Burn 16 | . . . . 3 12 . . 1 . . . . . . Destroy 26 | . . . . 1 . . . . . . . . 3 22 Melee Attacks . | . . . . . . . . . . . . . . . Impact . | . . . . . . . . . . . . . . . Slashing . | . . . . . . . . . . . . . . . Piercing . | . . . . . . . . . . . . . . . Sneak Attacks . | . . . . . . . . . . . . . . . Combat Hostiles . | . . . . . . . . . . . . . . . Follow-up Attacks . | . . . . . . . . . . . . . . . Damage Inflicted 9666 | . 327 1490 223 909 2502 . 211 869 . 452 200 . 1310 1173 Guns 8003 | . 327 1270 220 887 2502 . 211 205 . 452 190 . 1291 448 Cannons . | . . . . . . . . . . . . . . . Explosions 1565 | . . 213 . . . . . 660 . . . . . 692 Melee . | . . . . . . . . . . . . . . . Ramming 98 | . . 7 3 22 . . . 4 . . 10 . 19 33 Kinetic 4673 | . 327 1270 220 657 . . . . . 270 190 . 1291 448 Thermal 4281 | . . 213 . 230 2502 . 211 721 . 182 . . . 222 Explosive 614 | . . . . . . . . 144 . . . . . 470 Electromagnetic . | . . . . . . . . . . . . . . . Impact . | . . . . . . . . . . . . . . . Slashing . | . . . . . . . . . . . . . . . Piercing . | . . . . . . . . . . . . . . . Highest Corruption 5 | . 1 . . . 3 . . 1 . . . . . 5 Average Corruption 1 | . 1 . . . 2 . . 1 . . . . . 2 Corruption Purged . | . . . . . . . . . . . . . . . Corruption Blocked . | . . . . . . . . . . . . . . . Effects 17 | . . . . . 4 . . 5 . . . . . 8 Message Errors 6 | . . . . . 2 . . . . . . . . 4 Matter Fused 1 | . . . . . . . . . . . . . . 1 Heat Flow Errors 2 | . . . . . . . . 2 . . . . . . Energy Discharges 1 | . . . . . . . . . . . . . . 1 Data Loss (minor) 1 | . . . . . . . . 1 . . . . . . Data Loss (major) 1 | . . . . . 1 . . . . . . . . . Misfires 2 | . . . . . 1 . . 1 . . . . . . Alerts 1 | . . . . . . . . 1 . . . . . . Weapon Failures 2 | . . . . . . . . . . . . . . 2 Overload Shots . | . . . . . . . . . . . . . . . Overflow Damage 321 | . . 53 . . . . . 189 . . . . . 79 Projectiles . | . . . . . . . . . . . . . . . Explosions 321 | . . 53 . . . . . 189 . . . . . 79 Melee . | . . . . . . . . . . . . . . . Knockbacks . | . . . . . . . . . . . . . . . Impact . | . . . . . . . . . . . . . . . Kinetic . | . . . . . . . . . . . . . . . Secondary . | . . . . . . . . . . . . . . . Self-Inflicted Damage 65 | . . . . . . . . 26 . . . . . 39 Shots 2 | . . . . . . . . 1 . . . . . 1 Rammed 14 | . . 3 1 3 . . . . . . 1 . 3 3 Targets Rammed 16 | . . 3 1 4 . . . 1 . . 1 . 3 3 Kicked . | . . . . . . . . . . . . . . . Crushed 2 | . . . . 1 . . . 1 . . . . . . Highest Temperature 408 | . 2 61 137 408 305 . . 198 . 24 54 . . 41 Average Temperature 76 | . 1 17 61 158 73 . . 70 . 11 24 . . 18 Received Heat Transfer 1555 | . 84 87 36 333 261 . . 18 . 72 . . 198 466 Effects 6 | . . . . 6 . . . . . . . . . . Interference 5 | . . . . 5 . . . . . . . . . . Damage (minor) 1 | . . . . 1 . . . . . . . . . . Siege Activations 2 | . . . . . . . . . . . . . 1 1 Total Turns 35 | . . . . . . . . . . . . . 24 11 Longest Duration 24 | . . . . . . . . . . . . . 24 11 Martial Activations . | . . . . . . . . . . . . . . . Shielding Activations . | . . . . . . . . . . . . . . . Robots Disrupted . | . . . . . . . . . . . . . . . Combat Hostiles . | . . . . . . . . . . . . . . . Robots Corrupted . | . . . . . . . . . . . . . . . Combat Hostiles . | . . . . . . . . . . . . . . . Parts Fried . | . . . . . . . . . . . . . . . Impact Corruptions . | . . . . . . . . . . . . . . . Robots Melted 6 | . . . . . 5 . . . . 1 . . . . Combat Hostiles 3 | . . . . . 2 . . . . 1 . . . . Parts Melted 30 | . . . . 1 22 . . 2 . 4 . . . 1 Heat Transferred 8441 | . . 200 . 703 5743 . 444 781 . 370 . . . 200 Parts Sabotaged . | . . . . . . . . . . . . . . . Parts Stolen . | . . . . . . . . . . . . . . . Parts Stripped . | . . . . . . . . . . . . . . . Power Chain Reactions . | . . . . . . . . . . . . . . . Alert | -11 -10 -9 -9 -8 -8 -7 -7 -7 -6 -6 -6 -5 -5 -4 ------- Run | Yrd Mat Mat Min Mat Gar Fac Was Fac Fac Gar Fac Fac DSF Fac Maximum Alert Level 4 | . . 1 . . 3 2 . 4 2 3 2 . 1 1 Low Security (%) 35 | . 100 14 100 100 14 . 100 19 . . . 100 59 77 Level 1 21 | . . 85 . . 17 . . 16 . 10 16 . 40 22 Level 2 17 | . . . . . 31 100 . 10 100 21 83 . . . Level 3 22 | . . . . . 37 . . 41 . 68 . . . . Level 4 1 | . . . . . . . . 10 . . . . . . Level 5 . | . . . . . . . . . . . . . . . High Security . | . . . . . . . . . . . . . . . Max Security . | . . . . . . . . . . . . . . . Sterilizations 1 | . . . . . . . . . . . . . 1 . Peak Influence 1196 | . 70 309 144 187 1055 553 176 1196 573 1002 494 186 274 312 Initial 573 | . . 8 94 24 117 553 176 . 573 394 434 186 84 143 Average 408 | . 26 230 101 91 615 530 68 566 569 736 435 154 196 148 Influence Increases 5225 | . 112 588 50 311 1038 . . 1578 . 723 106 5 200 514 Destroy 0b10 Robot/C 2320 | . 80 300 40 240 440 . . 460 . 300 80 . 180 200 Destroy 0b10 Robot/NC 200 | . 5 65 . 10 20 . . 70 . . 5 . . 25 Destroy Leader 458 | . 22 92 10 50 30 . . 142 . 30 20 . 20 42 Allied During Kill 977 | . . . . . 6 . . 658 . 313 . . . . Successful Hack 97 | . 5 57 . 11 12 . . 7 . . . 5 . . Disable Machine 405 | . . 60 . . . . . 195 . . . . . 150 Anti-Garrison Action 400 | . . . . . 350 . . . . 50 . . . . Destroy Structure 233 | . . 14 . . 60 . . 46 . 30 1 . . 82 Lose Combat Pursuer 135 | . . . . . 120 . . . . . . . . 15 Influence Decreases 4948 | . 92 364 230 194 164 552 503 408 607 459 553 264 47 511 Entered New Map 2616 | . . 12 150 40 64 502 327 . 597 169 393 194 37 131 Time Decay 1642 | . 92 352 80 134 . 50 176 338 10 . 160 70 . 180 Lost Part 260 | . . . . 20 60 . . 10 . . . . 10 160 Lost Ally 430 | . . . . . 40 . . 60 . 290 . . . 40 Squads Dispatched 23 | . 1 3 . 3 . . . 5 . . 1 . 1 9 Investigation 4 | . . 1 . . . . . 1 . . . . . 2 Extermination 3 | . . . . . . . . 2 . . 1 . . . Reinforcement 9 | . 1 2 . 1 . . . 1 . . . . 1 3 Assault 2 | . . . . . . . . . . . . . . 2 Garrison 5 | . . . . 2 . . . 1 . . . . . 2 Intercept . | . . . . . . . . . . . . . . . Searches Triggered . | . . . . . . . . . . . . . . . Construction Impeded . | . . . . . . . . . . . . . . . Haulers Reinforced . | . . . . . . . . . . . . . . . Active Scanning Responses . | . . . . . . . . . . . . . . . Cargo Convoy Interrupts . | . . . . . . . . . . . . . . . Stealth | -11 -10 -9 -9 -8 -8 -7 -7 -7 -6 -6 -6 -5 -5 -4 --------- Run | Yrd Mat Mat Min Mat Gar Fac Was Fac Fac Gar Fac Fac DSF Fac Distress Signals 10 | . . 4 . . . . . 4 . . . . . 2 Communications Jammed . | . . . . . . . . . . . . . . . Distress Signals . | . . . . . . . . . . . . . . . Times Spotted 137 | . 7 23 1 13 26 . . 15 . 17 4 . 9 22 Peak Tracking Total 11 | . 3 5 1 4 4 . . 3 . 4 2 . 4 11 Tactical Retreats 6 | . . . . . 5 . . . . . . . . 1 Traps | -11 -10 -9 -9 -8 -8 -7 -7 -7 -6 -6 -6 -5 -5 -4 ------- Run | Yrd Mat Mat Min Mat Gar Fac Was Fac Fac Gar Fac Fac DSF Fac Traps Triggered 5 | . 1 . . . . 1 . 2 . . . . . 1 Indirectly . | . . . . . . . . . . . . . . . Trap Hack Attempts . | . . . . . . . . . . . . . . . Triggered . | . . . . . . . . . . . . . . . Disarmed . | . . . . . . . . . . . . . . . Reprogrammed . | . . . . . . . . . . . . . . . Reused . | . . . . . . . . . . . . . . . Traps Extracted . | . . . . . . . . . . . . . . . Installed . | . . . . . . . . . . . . . . . Triggered . | . . . . . . . . . . . . . . . Machines | -11 -10 -9 -9 -8 -8 -7 -7 -7 -6 -6 -6 -5 -5 -4 ---------- Run | Yrd Mat Mat Min Mat Gar Fac Was Fac Fac Gar Fac Fac DSF Fac Machines Disabled 32 | . . 4 . . 4 . . 13 . 1 . . . 10 Max in Single Turn 13 | . . 4 . . 1 . . 13 . 1 . . . 8 Garrison Access 2 | . . . . . . . . 1 . . . . . 1 Garrison Relay 5 | . . . . . 4 . . . . 1 . . . . Machines Repaired . | . . . . . . . . . . . . . . . Machines Dismantled . | . . . . . . . . . . . . . . . Machines Sabotaged . | . . . . . . . . . . . . . . . Overloaded Fab Kills . | . . . . . . . . . . . . . . . Hacking | -11 -10 -9 -9 -8 -8 -7 -7 -7 -6 -6 -6 -5 -5 -4 --------- Run | Yrd Mat Mat Min Mat Gar Fac Was Fac Fac Gar Fac Fac DSF Fac Machines Accessed 23 | . 2 8 . 2 3 . . 4 1 . . 1 . 2 Terminals 16 | . 1 7 . 1 3 . . 2 . . . 1 . 1 Fabricators 2 | . . . . . . . . 1 . . . . . 1 Repair Stations 1 | . 1 . . . . . . . . . . . . . Recycling Units . | . . . . . . . . . . . . . . . Scanalyzers 1 | . . 1 . . . . . . . . . . . . Garrison Access 3 | . . . . 1 . . . 1 1 . . . . . Total Hacks 66 | . 6 32 . 5 9 . . 7 1 . . 1 . 5 Successful 35 | . 5 20 . 2 3 . . 3 1 . . 1 . . Failed 30 | . 1 11 . 3 6 . . 4 . . . . . 5 Catastrophic 6 | . . 1 . 1 . . . 2 . . . . . 2 Database Lockouts 1 | . . 1 . . . . . . . . . . . . Manual 39 | . 3 24 . 3 4 . . 5 . . . . . . Terminals 54 | . 4 30 . 3 9 . . 5 . . . 1 . 2 Fabricators 4 | . . . . . . . . 1 . . . . . 3 Repair Stations 2 | . 2 . . . . . . . . . . . . . Recycling Units . | . . . . . . . . . . . . . . . Scanalyzers 2 | . . 2 . . . . . . . . . . . . Garrison Access 4 | . . . . 2 . . . 1 1 . . . . . Terminal Hacks 23 | . 2 15 . 1 2 . . 2 . . . 1 . . Robot Analysis 2 | . 1 . . 1 . . . . . . . . . . Prototype ID Bank 2 | . . 2 . . . . . . . . . . . . Open Door 1 | . . . . . 1 . . . . . . . . . Open DSF 1 | . . . . . . . . . . . . 1 . . Level Access Points 1 | . . . . . . . . 1 . . . . . . Emergency Access Points 2 | . . 2 . . . . . . . . . . . . Terminal Index 1 | . . 1 . . . . . . . . . . . . Alert Level 2 | . . 1 . . . . . 1 . . . . . . Locate Traps 1 | . . 1 . . . . . . . . . . . . Security Status 1 | . . 1 . . . . . . . . . . . . Patrol Status 1 | . . 1 . . . . . . . . . . . . Transport Status 2 | . . 2 . . . . . . . . . . . . Hauler Manifests 3 | . 1 2 . . . . . . . . . . . . Zone Layout 2 | . . 2 . . . . . . . . . . . . Garrison Registry 1 | . . . . . 1 . . . . . . . . . Fabricator Hacks . | . . . . . . . . . . . . . . . Repair Station Hacks 2 | . 2 . . . . . . . . . . . . . Scan Component 1 | . 1 . . . . . . . . . . . . . Repair 1 | . 1 . . . . . . . . . . . . . Recycling Unit Hacks . | . . . . . . . . . . . . . . . Scanalyzer 1 | . . 1 . . . . . . . . . . . . Retrieve Study 1 | . . 1 . . . . . . . . . . . . Garrison Access Hacks 3 | . . . . 1 . . . 1 1 . . . . . Unlock Access 2 | . . . . 1 . . . . 1 . . . . . Seal Access 1 | . . . . . . . . 1 . . . . . . Unauthorized Hacks 6 | . 1 4 . . 1 . . . . . . . . . Terminals 6 | . 1 4 . . 1 . . . . . . . . . Track 3 | . . 2 . . 1 . . . . . . . . . Botnet 3 | . 1 2 . . . . . . . . . . . . Fabricators . | . . . . . . . . . . . . . . . Repair Stations . | . . . . . . . . . . . . . . . Recycling Units . | . . . . . . . . . . . . . . . Scanalyzers . | . . . . . . . . . . . . . . . Garrison Access . | . . . . . . . . . . . . . . . Data Cores Recovered . | . . . . . . . . . . . . . . . Used . | . . . . . . . . . . . . . . . Hacking Detections 20 | . 2 8 . 2 3 . . 3 . . . . . 2 Full Trace Events 5 | . . 1 . . 1 . . 1 . . . . . 2 Feedback Events . | . . . . . . . . . . . . . . . Feedback Blocked . | . . . . . . . . . . . . . . . Robot Schematics Acquired . | . . . . . . . . . . . . . . . Robots Built . | . . . . . . . . . . . . . . . Authchips . | . . . . . . . . . . . . . . . Time . | . . . . . . . . . . . . . . . Total Robot Build Rating . | . . . . . . . . . . . . . . . Part Schematics Acquired . | . . . . . . . . . . . . . . . Parts Built . | . . . . . . . . . . . . . . . Authchips . | . . . . . . . . . . . . . . . Time . | . . . . . . . . . . . . . . . Total Part Build Rating . | . . . . . . . . . . . . . . . Part Studies Acquired 1 | . . 1 . . . . . . . . . . . . Parts Repaired 1 | . 1 . . . . . . . . . . . . . Time 26 | . 26 . . . . . . . . . . . . . Parts Recycled . | . . . . . . . . . . . . . . . Recycled Matter . | . . . . . . . . . . . . . . . Retrieved Matter . | . . . . . . . . . . . . . . . Retrieved Components . | . . . . . . . . . . . . . . . Parts Scanalyzed . | . . . . . . . . . . . . . . . Part Schematics Acquired . | . . . . . . . . . . . . . . . Parts Damaged . | . . . . . . . . . . . . . . . Bothacking | -11 -10 -9 -9 -8 -8 -7 -7 -7 -6 -6 -6 -5 -5 -4 ------------ Run | Yrd Mat Mat Min Mat Gar Fac Was Fac Fac Gar Fac Fac DSF Fac Used RIF Installer 3 | . . . . . 2 . . . . 1 . . . . Command Fork 1 | . . . . . . . . . . 1 . . . . Alert ID Control 1 | . . . . . 1 . . . . . . . . . Robots Hacked 7 | . . . . . . . . 3 . 1 . . . 3 Non-combat 3 | . . . . . . . . 3 . . . . . . Combat 4 | . . . . . . . . . . 1 . . . 3 Robot Hacks Applied 8 | . . . . . . . . 4 . 1 . . . 3 generate_echo 1 | . . . . . . . . 1 . . . . . . map_earth 1 | . . . . . . . . 1 . . . . . . ignore_parts 1 | . . . . . . . . 1 . . . . . . map_route 1 | . . . . . . . . 1 . . . . . . amplify_resonance 1 | . . . . . . . . . . 1 . . . . overwrite_iff 2 | . . . . . . . . . . . . . . 2 formatsys_high 1 | . . . . . . . . . . . . . . 1 Relay Couplers Released 16 | . . . . . 13 . . . . 3 . . . . Machine Destruction 16 | . . . . . 13 . . . . 3 . . . . Attached 5 | . . . . . . . . 1 . 2 . . . 2 Fabnet Peak Effective % . | . . . . . . . . . . . . . . . Robots Rewired . | . . . . . . . . . . . . . . . Allies Hacked . | . . . . . . . . . . . . . . . Hacks Repelled . | . . . . . . . . . . . . . . . Allies | -11 -10 -9 -9 -8 -8 -7 -7 -7 -6 -6 -6 -5 -5 -4 -------- Run | Yrd Mat Mat Min Mat Gar Fac Was Fac Fac Gar Fac Fac DSF Fac Total Allies 25 | . . . . . 2 . 20 . . . . . . 3 Largest Group 20 | . . . . . 2 . 20 20 15 15 . . . 2 Highest-Rated Group 531 | . . . . . 56 . 531 531 459 459 . . . 94 Highest-Rated Ally 47 | . . . . . 31 . 31 31 31 31 . . . 47 Total Orders . | . . . . . . . . . . . . . . . Ally Attacks 345 | . . . . . . . . 226 . 111 . . . 8 Total Damage 4738 | . . . . . . . . 2752 . 1797 . . . 189 Kills 42 | . . . . . . . . 30 . 12 . . . . Allies Corrupted 1 | . . . . . . . . . . . . . . 1 Allies Melted . | . . . . . . . . . . . . . . . Intel | -11 -10 -9 -9 -8 -8 -7 -7 -7 -6 -6 -6 -5 -5 -4 ------- Run | Yrd Mat Mat Min Mat Gar Fac Was Fac Fac Gar Fac Fac DSF Fac Active Infowar (turns) 1270 | . 169 174 . . . . . . . . 189 142 233 363 Optics 927 | . . . . . . . . . . . 189 142 233 363 Structural 343 | . 169 174 . . . . . . . . . . . . Robot Analysis Total 2 | . 1 . . 1 . . . . . . . . . . Derelict Logs Recovered 1 | . . . 1 . . . . . . . . . . . Drone Launches . | . . . . . . . . . . . . . . . Drone Recoveries . | . . . . . . . . . . . . . . . Exploration | -11 -10 -9 -9 -8 -8 -7 -7 -7 -6 -6 -6 -5 -5 -4 ------------- Run | Yrd Mat Mat Min Mat Gar Fac Was Fac Fac Gar Fac Fac DSF Fac Turns Passed 6599 | . 252 809 177 334 1680 107 473 1044 29 622 334 142 233 363 Spaces Moved 3040 | 1 117 369 96 132 746 56 195 442 12 337 187 88 94 168 Core 23 | . . . . . . . . . . . . . . 23 Treads 2085 | . 52 369 96 132 291 . . 282 12 337 187 88 94 145 Legs 66 | 1 65 . . . . . . . . . . . . . Wheels 866 | . . . . . 455 56 195 160 . . . . . . Hover . | . . . . . . . . . . . . . . . Flight . | . . . . . . . . . . . . . . . Fastest Speed 50 | 120 120 160 160 160 145 190 190 190 160 160 160 160 160 50 Average Speed 174 | 120 137 160 160 166 178 190 190 219 160 160 160 160 160 144 Slowest Speed 320 | 120 160 160 160 240 320 190 190 232 160 160 160 160 160 160 Overloaded Moves . | . . . . . . . . . . . . . . . Propulsion Burnouts . | . . . . . . . . . . . . . . . Robots Hopped . | . . . . . . . . . . . . . . . Potential Cave-ins . | . . . . . . . . . . . . . . . Cave-ins Triggered 1 | . . . . . . . . . . . . . . 1 Exploration Rate (%) 28 | 1 35 43 29 9 65 2 85 21 1 48 8 3 72 8 Regions Visited 14 Branch Regions 1 Pre-discovered Areas . | . . . . . . . . . . . . . . . Known Exits Taken 4 | . . . . 1 . . . 1 1 . . 1 . . Unknown Exits Taken 5 | 1 1 1 1 . . . . . . . 1 . . . Scrap Searched 1 | . . . 1 . . . . . . . . . . . Spaces Dug . | . . . . . . . . . . . . . . . Terrain Destroyed 100 | . . 14 . . 1 . . 45 . . . . . 40 Melee . | . . . . . . . . . . . . . . . Projectile 1 | . . . . . 1 . . . . . . . . . AOE 96 | . . 14 . . . . . 45 . . . . . 37 Terrain Rammed . | . . . . . . . . . . . . . . . Walls Destroyed . | . . . . . . . . . . . . . . . Machines Disabled . | . . . . . . . . . . . . . . . Actions | -11 -10 -9 -9 -8 -8 -7 -7 -7 -6 -6 -6 -5 -5 -4 --------- Run | Yrd Mat Mat Min Mat Gar Fac Was Fac Fac Gar Fac Fac DSF Fac Total 3776 | . 182 492 104 189 892 58 287 502 22 382 206 89 142 229 Wait 217 | . 34 25 2 8 24 . 70 23 6 10 . . 7 8 Move 3028 | . 116 368 95 132 744 56 194 441 12 336 186 87 93 168 Hop . | . . . . . . . . . . . . . . . Pick Up 67 | . 5 17 . 5 20 . 3 5 1 3 3 . 4 1 Fast Attach 23 | . 2 . . 2 5 1 4 2 . 4 . . 1 2 Attach 25 | . 2 2 . 2 4 . 1 3 2 1 . 2 1 5 Detach 11 | . . . . . 2 . 1 3 . 4 . . . 1 Swap 62 | . 2 17 . 9 3 . 3 4 . 4 6 . 7 7 Drop 68 | . 6 20 . 5 7 1 6 6 1 2 3 . 8 3 Fire 259 | . 15 40 6 22 83 . 5 14 . 18 7 . 18 31 Melee . | . . . . . . . . . . . . . . . Ram . | . . . . . . . . . . . . . . . Kick . | . . . . . . . . . . . . . . . Crush 16 | . . 3 1 4 . . . 1 . . 1 . 3 3 Escape Stasis . | . . . . . . . . . . . . . . . Rewire . | . . . . . . . . . . . . . . . Trap . | . . . . . . . . . . . . . . . Miscellaneous . | . . . . . . . . . . . . . . . Route ------- -11/Scrapyard -10/Materials -9/Materials -9/Mines -8/Materials -8/Garrison (discovered 4 exits: [*Fac x3] / [Mat]) -7/Factory -7/Waste -7/Factory (discovered 4 exits: *Fac x4) -6/Factory -6/Garrison -6/Factory -5/Factory (discovered 2 exits: [*Upp] / DSF) -5/DSF -4/Factory History --------- Turn | Location | Event 1 | -11/Scrapyard | Discovered new exit (range 0) 1 | -11/Scrapyard | Entered Materials 232 | -10/Materials | Repaired Assault Rifle 245 | -10/Materials | Discovered new exit (range 6) 253 | -10/Materials | Entered another Materials area 253 | -9/Materials | Evolved 2 slots: Weapon x2 428 | -9/Materials | Destroyed 9 combat bots 645 | -9/Materials | Discovered new exit (range 8) 722 | -9/Materials | Build established: Tank 780 | -9/Materials | Central database locked down 1062 | -9/Materials | Entered Mines 1073 | -9/Mines | Met a Derelict bent on vengeance 1110 | -9/Mines | Found a hidden stash of uninstalled traps 1131 | -9/Mines | Discovered new exit (range 10) 1134 | -9/Mines | Learned location of 1 exit from Lower Caves 1239 | -9/Mines | Entered Materials 1239 | -8/Materials | Evolved 2 slots: Utility x2 1427 | -8/Materials | Garrison activated, responded to threat 1573 | -8/Materials | Identified exit to Garrison 1573 | -8/Materials | Entered Garrison 1629 | -8/Garrison | Triggered checkpoint 1656 | -8/Garrison | Garrison Relay disabled 1767 | -8/Garrison | Installed Relay Interface Framework 1795 | -8/Garrison | Triggered checkpoint 1897 | -8/Garrison | Discovered new exit (range 15) 1897 | -8/Garrison | Discovered new exit (range 62) 1897 | -8/Garrison | Discovered new exit (range 41) 1897 | -8/Garrison | Discovered new exit (range 13) 1931 | -8/Garrison | Triggered checkpoint 2141 | -8/Garrison | Triggered checkpoint 2167 | -8/Garrison | Garrison Relay disabled 2207 | -8/Garrison | Garrison Relay disabled 2369 | -8/Garrison | Triggered checkpoint 2496 | -8/Garrison | Expanded RIF knowledge: Alert ID Control 2627 | -8/Garrison | Garrison Relay disabled 3253 | -8/Garrison | Entered Factory 3253 | -7/Factory | Evolved 2 slots: Propulsion x1, Utility x1 3360 | -7/Factory | Sucked down chute 3360 | -7/Factory | Entered Waste 3361 | -7/Waste | Joined by Warlord forces that had cleared the area 3760 | -7/Waste | Discovered new exit (range 13) 3833 | -7/Waste | Entered Factory 3833 | -7/Factory | Accompanied by 20 allies 4035 | -7/Factory | Build established: Bothacker-Tank 4185 | -7/Factory | Garrison activated, responded to threat 4690 | -7/Factory | Identified exit to Factory 4877 | -7/Factory | Entered another Factory area 4877 | -6/Factory | Accompanied by 15 allies 4877 | -6/Factory | Evolved 2 slots: Propulsion x1, Utility x1 4900 | -6/Factory | Identified exit to Garrison 4906 | -6/Factory | Entered Garrison 4906 | -6/Garrison | Accompanied by 15 allies 4962 | -6/Garrison | Triggered checkpoint 5019 | -6/Garrison | Expanded RIF knowledge: Command Fork 5082 | -6/Garrison | Triggered checkpoint 5083 | -6/Garrison | Triggered checkpoint 5098 | -6/Garrison | Triggered checkpoint 5247 | -6/Garrison | Discovered new exit (range 13) 5288 | -6/Garrison | Triggered checkpoint 5303 | -6/Garrison | Garrison Relay disabled 5460 | -6/Garrison | Spotted B-75 Beast 5460 | -6/Garrison | Spotted B-75 Beast 5528 | -6/Garrison | Entered Factory 5542 | -6/Factory | Lost 10 allies 5834 | -6/Factory | Discovered new exit (range 8) 5862 | -6/Factory | Entered another Factory area 5862 | -5/Factory | Evolved 2 slots: Utility x2 5901 | -5/Factory | Discovered new exit (range 10) 6004 | -5/Factory | Identified exit to DSF 6004 | -5/Factory | Entered DSF 6031 | -5/DSF | Discovered new exit (range 22) 6060 | -5/DSF | Additional patrols routed to DSF 6142 | -5/DSF | Build established: Bothacker-Gunner 6172 | -5/DSF | Sterilization system engaged 6192 | -5/DSF | Ambient heat levels rising (+10) 6207 | -5/DSF | Ambient heat levels rising (+10) 6222 | -5/DSF | Ambient heat levels rising (+10) 6237 | -5/DSF | Ambient heat levels rising (+10) 6237 | -5/DSF | Entered Factory 6237 | -4/Factory | Evolved 2 slots: Utility x2 6487 | -4/Factory | Build established: Bothacker-Tank 6498 | -4/Factory | Garrison activated, responded to threat 6579 | -4/Factory | Crushed by falling debris 6581 | -4/Factory | Core integrity fell below 50% 6600 | -4/Factory | Self-destructed Last Messages --------------- 06585_ Slug penetrates Earth. 06585_ Slug penetrates Wall. 06586_ K-01 Serf collects debris. 06588_ The unstable cave ceiling collapses. 06590_ K-01 Serf collects debris. 06591_ QM2,WFPYEVZVXSY DBD92MQ8BG 06591_ Penetrated by Slug. 06591_ Hvy. Rocket Launcher destroyed. 06593_ K-01 Serf collects debris. 06595_ Slug penetrates Wall. 06598_ G-67 Veteran emerges from the garrison. 06598_ Slug penetrates Wall. 06598_ Penetrated by Slug. 06598_ Slug penetrates Wall. 06599_ Wall collapses. 06599_ Penetrated by Slug. 06600_ Power Conduit explodes. 06600_ ALERT: Garrison Access compromised, dispatching multiple assault carriers. 06600_ Garrison Access disabled. Map ----- +----------------------------------------------------+ | ??????????????#### """T""" """" # """ | | ?????????????? """ """ " # """ | | ????????????? # """ | | ????????????? ] ! # = """ | | ???????????? !# | | ???????????? ######## | | ???????????? " #??????? | | ???????????????????# "" ???????? | | ???????????????????# * = = ######### | | ???????????????????# =% | | ???????????????????# [%! [= | | ???????????????????# % * | | ???????????????????# | | ???????????????????# ! | | ???????????????????# = / x | | ???????????????????######## * | | ?????????????????????########;### = | | ?????????????????????# [=! | | ?????????????????????# [ [ | | ?????????????????????# [%[% | | ?????????????????????# !* | | ?????????????????????# ] | | ?????????????????????# | | ?????????????????????# ] | | ?????????????????????# # | | ?????????????????????# !@ # | | ?????????????????????# ; % # | | ?????????????????????#Y g ##; #! | | ????????????????????# #?# # | | ????????????????????#######;;;;;###?? # | | ??????????????????????????? ??? # | | ??????????????????????????? ? # | | ???????????????????????????? # ^ # | | ???????????????????????????? !!! # # | | ???????????????????????????? !!! #? # | | ?????????????????????????????!! #?? ?###### | | ????????????????????????????? #?? ????????? | | ?????????????????????????????? #????????????? | | ?????????????????????????????? #????????????? | | ?????????????????????????????? #????????????? | | ???????????????????????????????######????????????? | | ?????????????????????????????????????????????????? | | ?????????????????????????????????????????????????? | | ?????????????????????????????????????????????????? | | ?????????????????????????????????????????????????? | | ?????????????????????????????????????????????????? | | ?????????????????????????????????????????????????? | | ?????????????????????????????????????????????????? | | ?????????????????????????????????????????????????? | | ?????????????????????????????????????????????????? | +----------------------------------------------------+ Best States ------------- Heat Dissipation 83 Coolant Potential 100 Energy Generation 21 Energy Capacity 325 Matter Stores 300 Matter Capacity 300 Sight Range 22 Terrain Scan Density 10 EM Shielding 2 Corruption Block 3 Armor Coverage 900 Core Shielding 30 Evasion (%) 55 Targeting Accuracy 16 Recoil Reduction 4 Kinecelleration 30 Offensive Hacking 20 Relay Coupler Types 1 Relay Coupler Value 32 Item Schematics ----------------- None Robot Schematics ------------------ None Fabricated ------------ Nothing Repaired ---------- Assault Rifle | 59% | -10/Materials Studied --------- Assault Rifle | -9/Materials | Hacked Alien Tech Used ----------------- None Achievements -------------- None Challenges ------------ None Game ------ Seed ThunderCryofiberProtomatter Manual? 0 Play Time 00:39:15 Cumulative 1237.6 hours Start 2025.12.14 @ 12:57:14 End 2025.12.19 @ 14:07:36 Sessions 5 Manual Loads 0 Difficulty Rogue Special Mode None Game No. 1521 Rogue 1237 Adventurer 124 Explorer 160 Win Type - Total 58 Types 44/0/8/4/1/0/0/1/0/0 Lore% 93 Gallery% 87 Achievement% 66 Wizard Run 0 Options --------- Layout 0 ASCII 0 Keyboard 1 Movement Numpad Keybinds 0 Fullscreen 2 Font 18/X11 Map View 76x50 Zoom Use 0% Tactical HUD 1 Map Filters NONE Filters NONE Steam 1 RUN: b109952d-5917-4954-87f9-d15a812e1cbd